Cogmind - Beta 10.2 @@@ ROGUE MODE // 2022.02.25 @ 20:14:12 Player: Lumi Result: Destroyed by S-10 Pest with Light Assault Rifle Performance ------------- Evolutions (0) 0 Regions Visited (1) 200 Robots Destroyed (11) 55 Value Destroyed (320) 320 Prototype IDs (0) 0 Alien Tech Used (0) 0 Bonus (0) 0 TOTAL SCORE: 575 Bonus ------- None Cogmind --------- Core Integrity 0/250 Matter 292/300 Energy 86/100 System Corruption 1% Temperature Cool (0) Movement Core (50) Location -10/Materials Parts ------- > --- POWER (1) -------- (None) > --- PROPULSION (2) --- (None) > --- UTILITY (2) ------ Seismic Analyzer > --- WEAPON (2) ------- (None) > --- INVENTORY (4) ---- Heat Sink Large Storage Unit Large Storage Unit Visual Processing Unit Peak State ------------ > --- POWER ------------ Ion Engine > --- PROPULSION ------- Wheel Compact Wheel > --- UTILITY ---------- Small Storage Unit Improved Terrain Scanner > --- WEAPON ----------- Assault Rifle Light Assault Rifle > --- INVENTORY -------- Ion Engine Aluminum Leg Aluminum Leg Assault Rifle [Rating: 8] Favorites ----------- Power Ion Engine Engine Ion Engine Propulsion Aluminum Leg Leg Aluminum Leg Wheel Wheel Utility Seismic Analyzer Device Improved Terrain Scanner Storage Large Storage Unit Processor Seismic Analyzer Weapon Assault Rifle Energy Gun Small Laser Ballistic Gun Assault Rifle Launcher Grenade Launcher Build | -11 -10 ------- Run | Scr Mat Slots Evolved . | . . Power . | . . Propulsion . | . . Utility . | . . Weapon . | . . Parts Attached 18 | 8 10 Power 2 | 1 1 Engine 2 | 1 1 Core . | . . Reactor . | . . Propulsion 5 | 2 3 Treads . | . . Leg 3 | . 3 Wheel 2 | 2 . Hover . | . . Flight . | . . Utility 5 | 3 2 Device 1 | 1 . Storage 3 | 1 2 Processor 1 | 1 . Hackware . | . . Protection . | . . Artifact . | . . Weapon 6 | 2 4 Energy Gun 2 | . 2 Energy Cannon . | . . Ballistic Gun 3 | 2 1 Ballistic Cannon . | . . Launcher 1 | . 1 Special Weapon . | . . Impact Weapon . | . . Slashing Weapon . | . . Piercing Weapon . | . . Special Melee Weapon . | . . Unidentified Prototypes . | . . Parts Lost 14 | . 14 Power 2 | . 2 Propulsion 5 | . 5 Utility 1 | . 1 Weapon 6 | . 6 Highest Loss Streak 7 | . 7 Average Slot Usage (%) 90 | . 90 Engine 11 | . 11 Leg 16 | . 16 Wheel 8 | . 8 Device 3 | . 3 Storage 8 | . 8 Processor 14 | . 14 Energy Gun 4 | . 4 Ballistic Gun 17 | . 17 Launcher 3 | . 3 Naked Turns . | . . Heaviest Build 26 | 13 26 Greatest Support 26 | 26 26 Greatest Overweight (x) 2 | . 2 Average Overweight (x) . | . . Largest Inventory Capacity 10 | 6 10 Average Capacity 7 | 4 7 Most Carried 5 | 4 5 Average Carried 3 | 2 3 Final Capacity 4 | 4 4 Final Carried 4 | 4 4 Class Distribution -------------------- 100% | Mutant Dominant Class ---------------- Mutant | -10/Materials Resources | -11 -10 ----------- Run | Scr Mat Matter Collected 480 | 284 196 Remotely . | . . Salvage Created 394 | 79 315 Parts 23 | 7 16 Haulers Intercepted . | . . Recyclers Shooed 1 | 1 . Parts Field Recycled . | . . Retrieved Matter . | . . Parts Self-Destructed . | . . Prevented . | . . Kills | -11 -10 ------- Run | Scr Mat Combat Hostiles Destroyed 7 | . 7 Guns 5 | . 5 AOE 2 | . 2 Classes Destroyed 4 | 2 2 Tunneler 2 | 2 . Recycler 1 | 1 . Watcher 1 | . 1 Grunt 7 | . 7 Best Kill Streak 4 | 2 4 Combat Bots Only 3 | . 3 Max Kills in Single Turn 1 | 1 1 Gunslinging . | . . Exploded 1 | . 1 Melee . | . . Uniques/NPCs Destroyed . | . . Combat | -11 -10 -------- Run | Scr Mat Damage Taken 1211 | . 1211 Core 257 | . 257 Absorbed by Shields . | . . Core Remaining (%) 100 | 100 . Volleys Fired 42 | 5 37 Largest 2 | 2 2 Hottest 65 | 40 65 Shots Fired 74 | 10 64 Gun 69 | 10 59 Cannon . | . . Launcher 5 | . 5 Special . | . . Kinetic 54 | 10 44 Thermal 15 | . 15 Explosive 5 | . 5 Electromagnetic . | . . Robot Hit Streak 12 | 3 12 Robot Miss Streak 4 | 1 4 Penetration Max . | . . Secondary Targets 1 | . 1 Max Gunslinging Chain 1 | . 1 Shots Hit Robots 46 | 5 41 Core Hits 27 | 4 23 Critical Hits . | . . Critical Kills . | . . Critical Parts Destroyed . | . . Melee Attacks . | . . Impact . | . . Slashing . | . . Piercing . | . . Sneak Attacks . | . . Combat Hostiles . | . . Follow-up Attacks . | . . Damage Inflicted 642 | 77 565 Guns 513 | 77 436 Cannons . | . . Explosions 123 | . 123 Melee . | . . Ramming 6 | . 6 Kinetic 379 | 77 302 Thermal 134 | . 134 Explosive 123 | . 123 Electromagnetic . | . . Impact . | . . Slashing . | . . Piercing . | . . Highest Corruption 1 | . 1 Average Corruption 1 | . 1 Corruption Purged . | . . Overload Shots . | . . Overflow Damage 4 | . 4 Projectiles . | . . Explosions 4 | . 4 Melee . | . . Knockbacks . | . . Impact . | . . Kinetic . | . . Secondary . | . . Self-Inflicted Damage 37 | . 37 Shots 1 | . 1 Rammed 1 | . 1 Targets Rammed 1 | . 1 Kicked . | . . Crushed . | . . Highest Temperature 98 | . 98 Average Temperature 35 | . 35 Received Heat Transfer 552 | . 552 Siege Activations . | . . Robots Corrupted . | . . Combat Hostiles . | . . Parts Fried . | . . Impact Corruptions . | . . Robots Melted . | . . Combat Hostiles . | . . Parts Melted 1 | . 1 Heat Transferred 311 | . 311 Parts Sabotaged . | . . Parts Stolen . | . . Parts Stripped . | . . Power Chain Reactions . | . . Missiles Intercepted . | . . Alert | -11 -10 ------- Run | Scr Mat Peak Influence 211 | 15 211 Initial 9 | . 9 Average 68 | 5 82 Maximum Alert Level 1 | . 1 Low Security (%) 87 | 100 85 Level 1 12 | . 14 Level 2 . | . . Level 3 . | . . Level 4 . | . . Level 5 . | . . High Security . | . . Max Security . | . . Squads Dispatched 2 | . 2 Investigation 2 | . 2 Extermination . | . . Reinforcement . | . . Assault . | . . Garrison . | . . Intercept . | . . Construction Impeded . | . . Haulers Reinforced . | . . Stealth | -11 -10 --------- Run | Scr Mat Distress Signals 1 | . 1 Communications Jammed . | . . Distress Signals . | . . Times Spotted 20 | . 20 Peak Tracking Total 6 | . 6 Tactical Retreats 4 | . 4 Traps | -11 -10 ------- Run | Scr Mat Traps Triggered 1 | . 1 Indirectly . | . . Trap Hack Attempts . | . . Triggered . | . . Disarmed . | . . Reprogrammed . | . . Reused . | . . Traps Extracted . | . . Installed . | . . Triggered . | . . Machines | -11 -10 ---------- Run | Scr Mat Machines Disabled 2 | . 2 Max in Single Turn 1 | . 1 Machines Sabotaged . | . . Garrisons Compromised . | . . Overloaded Fab Kills . | . . Fab Network Shutdowns . | . . Hacking | -11 -10 --------- Run | Scr Mat Machines Accessed 4 | . 4 Terminals 4 | . 4 Fabricators . | . . Repair Stations . | . . Recycling Units . | . . Scanalyzers . | . . Garrison Access . | . . Total Hacks 12 | . 12 Successful 8 | . 8 Failed 4 | . 4 Catastrophic 2 | . 2 Database Lockouts . | . . Manual 12 | . 12 Terminals 12 | . 12 Fabricators . | . . Repair Stations . | . . Recycling Units . | . . Scanalyzers . | . . Garrison Access . | . . Terminal Hacks 4 | . 4 Part Schematic 1 | . 1 Terminal Index 1 | . 1 Unreport Threat 2 | . 2 Fabricator Hacks . | . . Repair Station Hacks . | . . Recycling Unit Hacks . | . . Scanalyzer . | . . Garrison Access Hacks . | . . Unauthorized Hacks 4 | . 4 Terminals 4 | . 4 Botnet 4 | . 4 Fabricators . | . . Repair Stations . | . . Recycling Units . | . . Scanalyzers . | . . Garrison Access . | . . Data Cores Recovered . | . . Used . | . . Hacking Detections 3 | . 3 Full Trace Events 3 | . 3 Feedback Events 1 | . 1 Corruption 1 | . 1 Feedback Blocked . | . . Robot Schematics Acquired . | . . Robots Built . | . . Matter . | . . Time . | . . Total Robot Build Rating . | . . Part Schematics Acquired 1 | . 1 Parts Built . | . . Matter . | . . Time . | . . Total Part Build Rating . | . . Parts Repaired . | . . Time . | . . Parts Recycled . | . . Recycled Matter . | . . Retrieved Matter . | . . Retrieved Components . | . . Parts Scanalyzed . | . . Part Schematics Acquired . | . . Parts Damaged . | . . Bothacking | -11 -10 ------------ Run | Scr Mat Used RIF Installer . | . . Robots Hacked . | . . Non-combat . | . . Combat . | . . Robot Hacks Applied . | . . Relay Couplers Released . | . . Robots Rewired . | . . Allies Hacked . | . . Hacks Repelled . | . . Allies | -11 -10 -------- Run | Scr Mat Total Allies . | . . Largest Group . | . . Highest-Rated Group . | . . Highest-Rated Ally . | . . Total Orders . | . . Ally Attacks . | . . Total Damage . | . . Kills . | . . Allies Corrupted . | . . Allies Melted . | . . Intel | -11 -10 ------- Run | Scr Mat Robot Analysis Total . | . . Derelict Logs Recovered . | . . Drone Launches . | . . Drone Recoveries . | . . Exploration | -11 -10 ------------- Run | Scr Mat Turns Passed 471 | 84 387 Spaces Moved 268 | 51 217 Core 13 | 1 12 Treads . | . . Legs 114 | . 114 Wheels 141 | 50 91 Hover . | . . Flight . | . . Fastest Speed 50 | 50 50 Average Speed 114 | 88 121 Slowest Speed 180 | 90 180 Overloaded Moves . | . . Propulsion Burnouts . | . . Robots Hopped . | . . Cave-ins Triggered . | . . Exploration Rate (%) 24 | 5 44 Regions Visited 1 Branch Regions . Pre-discovered Areas . | . . Known Exits Taken . | . . Unknown Exits Taken 1 | 1 . Scrap Searched . | . . Spaces Dug . | . . Terrain Destroyed 27 | . 27 Melee . | . . Projectile . | . . AOE 27 | . 27 Terrain Rammed . | . . Walls Destroyed . | . . Machines Disabled . | . . Actions | -11 -10 --------- Run | Scr Mat Total 357 | 77 280 Wait 11 | 9 2 Move 267 | 50 217 Hop . | . . Pick Up 12 | 4 8 Fast Attach 11 | 8 3 Attach 7 | . 7 Detach 2 | . 2 Swap . | . . Drop 4 | 1 3 Fire 42 | 5 37 Melee . | . . Ram 1 | . 1 Kick . | . . Crush . | . . Escape Stasis . | . . Rewire . | . . Trap . | . . Miscellaneous . | . . Route ------- -11/Scrapyard -10/Materials (discovered 2 exits: [*Mat] / [*Min]) History --------- Turn | Location | Event 19 | -11/Scrapyard | Discovered new exit (range 15) 85 | -11/Scrapyard | Entered Materials 190 | -10/Materials | Discovered new exit (range 14) 249 | -10/Materials | Lost 6 parts (1p2n1u2w) 311 | -10/Materials | Build established: Mutant 374 | -10/Materials | Discovered new exit (range 10) 446 | -10/Materials | Core integrity fell below 50% 466 | -10/Materials | Core integrity fell below 20% 472 | -10/Materials | Destroyed by S-10 Pest with Light Assault Rifle Last Messages --------------- >>Schematic(Hcp. Storage Unit) Downloading schematic... Hcp. Storage Unit Rating: 1 Schematic downloaded. >>Alert(Purge) Purged threat record, alert level lowered. >>Alert(Purge) Purged threat record, alert level lowered. 00438_ Aluminum Leg destroyed. 00445_ Heat Sink melted. 00445_ G-34 Mercenary destroyed. 00450_ Aluminum Leg destroyed. 00451_ Sml. Laser destroyed. 00453_ Assault Rifle destroyed. 00456_ Ion Engine destroyed. 00458_ Aluminum Leg destroyed. 00463_ Hadron Collector disabled. 00463_ Particle Gun destroyed. 00467_ Slammed into S-10 Pest. Map ----- +----------------------------------------------------+ | #???? ??????????????????? | | #########+## # | #???????????????????????? | | ??####### ^ # ##???? ?????????????????? | | ??# ?# + #???????????????????????? | | ??# """ # # #?? ????????????????????? | | ? # """ # # #?? ????????????????????? | | ??# """ + # ! #???????????????????????? | | ? # #####+############???????????????????????? | | ? ####+#?# #??#??????????????????????????? | | ?????# ### ###??#????????????????????????? | | ?#### ## #########?????????????????????? | | ### # # #??# ???????????????????? | | # #??# #??#####??####?????? | | / #??# #??# ? T #?????? | | "" "" # ##?# """#??# """ #?????? | | "" """ # #?## """#??# """ #?????? | | "" """ ## #########?# """#??# """ #?????? | | ####???#????## #??# "" #?????? | | ""#??#??????## "" #??# *%[ [[[#?????? | | "" """ T"#??######### "T #??# = [[ #?????? | | "" ^""" ""#??#"""""""# "" #??# [[ #?????? | | "" """ %###??#" !"| "# ####/########??????? | | = %#####" "##+####### gsg ####### ###?? | | ^ * % #?? | | ""^ """ < T +?? | | "" """ @ #?? | | "" """ ##### ##+####### ### ###+#+#?? | | ##???#########????????#######???#???????? | | #????#??????????????????????????????????? | | #?#?????????????????????????????????????? | | #? ?????????????????????????????????????? | | ###### #???????????????????????????????????????? | | ##??## #?"?????????????????????????????????????? | | #????# ????????????????????????????????????????? | | ##?### ? ??????????????????????????????????????? | | #??### ????????????????????????????????????????? | | #??### #???????????????????????????????????????? | | #???## ????????????????????????????????????????? | | #?#???? ?????????????????????????????????????????? | | #??? ????????????????????????????????????????????? | | ???#?????????????????????????????????????????????? | | ?##? ????????????????????????????????????????????? | | #??#? ???????????????????????????????????????????? | | ?????????????????????????????????????????????????? | | ?????????????????????????????????????????????????? | | ?????????????????????????????????????????????????? | | "????????????????????????????????????????????????? | | ??"??????????????????????????????????????????????? | | ??? ?????????????????????????????????????????????? | | ?????????????????????????????????????????????????? | +----------------------------------------------------+ Best States ------------- Heat Dissipation 25 Energy Generation 10 Energy Capacity 250 Matter Stores 300 Matter Capacity 300 Sight Range 16 Terrain Scan Range 16 Terrain Scan Density 60 Evasion (%) 50 Item Schematics ----------------- Hcp. Storage Unit | -10/Materials | Hacked Robot Schematics ------------------ None Fabricated ------------ Nothing Alien Tech Used ----------------- None Achievements -------------- None Challenges ------------ None Game ------ Seed SuspensionAbsorptionReactor Manual? 0 Play Time 00:10:32 Cumulative 26.4 hours Start 2022.02.25 @ 20:08:12 End 2022.02.25 @ 20:14:12 Sessions 1 Manual Loads 0 Difficulty Rogue Special Mode None Game No. 31 Rogue 31 Adventurer 0 Explorer 0 Win Type - Total 0 Types 0/0/0/0/0/0/0/0/0 Lore% 21 Gallery% 32 Achievement% 27 Wizard Run 0 Options --------- ASCII 0 Keyboard 0 Movement Numpad Keybinds 0 Fullscreen 2 Font 18/SmallcapsGlow Map View 76x50 Tactical HUD 1 Map Filters NONE Filters NONE Steam 1 RUN: ed10f828-d032-44a3-ac6e-6ed53b9a44e0